fUST/lending_fUST_20260228
["ID","MTS","AMOUNT","RATE_DAILY","PERIOD"]
[406895469,1772267501756,-1033.36,0.00015616,2]
[406895470,1772267501764,-500.0,0.00015616,2]
[406895471,1772267501772,-500.0,0.00015616,2]
[406895472,1772267501781,-2312.35,0.00015616,2]
[406895473,1772267501790,-955.01,0.00015616,2]
[406895474,1772267501799,-806.51,0.00015616,2]
[406895475,1772267501807,-1522.66,0.00015616,2]
[406895476,1772267501815,-500.0,0.00015616,2]
[406895477,1772267501824,-613.34537509,0.00015616,2]
[406895478,1772267501833,-867.0,0.00015616,2]
[406895479,1772267501842,-7146.16,0.00015616,2]
[406895480,1772267501849,-500.0,0.00015616,2]
[406895481,1772267501856,-500.0,0.00015616,2]
[406895482,1772267501863,-500.0,0.00015616,2]
[406895483,1772267501871,-1028.35,0.00015616,2]
[406895484,1772267501880,-500.0,0.00015616,2]
[406895485,1772267501888,-1008.96,0.00015616,2]
[406895486,1772267501895,-500.0,0.00015616,2]
[406895487,1772267501904,-1352.59,0.00015616,2]
[406895488,1772267501911,-506.03,0.00015616,2]
[406895489,1772267501918,-500.0,0.00015616,2]
[406895490,1772267501926,-500.0,0.00015616,2]
[406895491,1772267501934,-500.0,0.00015616,2]
[406895492,1772267501941,-500.0,0.00015616,2]
[406895493,1772267501948,-764.41,0.00015616,2]
[406895494,1772267501954,-500.0,0.00015616,2]
[406895495,1772267501961,-1761.81,0.00015616,2]
[406895496,1772267501968,-2215.04,0.00015616,2]
[406895497,1772267501977,-517.59,0.00015616,2]
[406895498,1772267501985,-517.41,0.00015616,2]
[406895499,1772267501993,-500.0,0.00015616,2]
[406895500,1772267502002,-500.0,0.00015616,2]
[406895501,1772267502009,-963.32,0.00015616,2]
[406895502,1772267502016,-700.0,0.00015616,2]
[406895503,1772267502025,-167.38928083,0.00015616,2]
[406895504,1772267502032,-899.12,0.00015616,2]
[406895505,1772267502040,-500.0,0.00015616,2]
[406895506,1772267502047,-1300.35,0.00015616,2]
[406895507,1772267502054,-5319.48,0.00015616,2]
[406895508,1772267502061,-1252.77,0.00015616,2]
[406895509,1772267502067,-587.74,0.00015616,2]
[406895510,1772267502075,-1166.63,0.00015616,2]
[406895511,1772267502081,-500.0,0.00015616,2]
[406895512,1772267502090,-899.07,0.00015616,2]
[406895513,1772267502097,-2895.24,0.00015616,2]
[406895514,1772267502105,-500.0,0.00015616,2]
[406895515,1772267502112,-500.0,0.00015616,2]
[406895516,1772267502120,-1068.48,0.00015616,2]
[406895517,1772267502128,-968.49,0.00015616,2]
[406895518,1772267502137,-500.0,0.00015616,2]
[406895519,1772267502148,-2416.57,0.00015616,2]
[406895520,1772267502155,-1587.58,0.00015616,2]
[406895521,1772267502163,-647.96,0.00015616,2]
[406895522,1772267502169,-8070.28,0.00015616,2]
[406895523,1772267502178,-731.15,0.00015616,2]
[406895524,1772267502184,-500.0,0.00015616,2]
[406895525,1772267502191,-500.0,0.00015616,2]
[406895526,1772267502199,-500.0,0.00015616,2]
[406895527,1772267502210,-1997.06,0.00015616,2]
[406895528,1772267502221,-3186.98,0.00015616,2]
[406895529,1772267502232,-3896.0,0.00015616,2]
[406895530,1772267502243,-500.0,0.00015616,2]
[406895531,1772267502254,-500.0,0.00015616,2]
[406895532,1772267502264,-527.94,0.00015616,2]
[406895533,1772267502274,-989.6,0.00015616,2]
[406895534,1772267502284,-7025.66,0.00015616,2]
[406895535,1772267502294,-500.0,0.00015616,2]
[406895536,1772267502304,-682.38,0.00015616,2]
[406895537,1772267502313,-447.95905688,0.00015616,2]
[406895538,1772267502323,-659.28,0.00015616,2]
[406895539,1772267502333,-728.78,0.00015616,2]
[406895540,1772267502343,-898.93,0.00015616,2]
[406895541,1772267502353,-793.11,0.00015616,2]
[406895542,1772267502363,-1706.3,0.00015616,2]
[406895543,1772267502372,-500.0,0.00015616,2]
[406895544,1772267502383,-659.85,0.00015616,2]
[406895545,1772267502393,-1134.79,0.00015616,2]
[406895546,1772267502403,-389.20077814,0.00015616,2]
[406895547,1772267502413,-11125.25,0.00015616,2]
[406895548,1772267502423,-7153.51,0.00015616,2]
[406895549,1772267502433,-648.35,0.00015616,2]
[406895550,1772267502443,-5078.3,0.00015616,2]
[406895551,1772267502453,-683.43,0.00015616,2]
[406895552,1772267502463,-2723.16,0.00015616,2]
[406895553,1772267502473,-202.61975219,0.00015616,2]
[406895554,1772267502483,-500.0,0.00015616,2]
[406895555,1772267502495,-4724.28,0.00015616,2]
[406895556,1772267502506,-500.0,0.00015616,2]
[406895557,1772267502516,-500.0,0.00015616,2]
[406895558,1772267502527,-739.63,0.00015616,2]
[406895559,1772267502537,-500.0,0.00015616,2]
[406895560,1772267502547,-500.0,0.00015616,2]
[406895561,1772267502557,-500.0,0.00015616,2]
[406895562,1772267502567,-500.0,0.00015616,2]
[406895563,1772267502577,-620.15549967,0.00015616,2]
[406895564,1772267502587,-4297.64,0.00015616,2]
[406895565,1772267502597,-737.38,0.00015616,2]
[406895566,1772267502607,-2549.64,0.00015616,2]
[406895567,1772267502617,-275.73812354,0.00015616,2]
[406895568,1772267502626,-500.0,0.00015616,2]
[406895569,1772267502636,-1171.08,0.00015616,2]
[406895570,1772267502646,-2640.18,0.00015616,2]
[406895571,1772267502656,-7472.22,0.00015616,2]
[406895572,1772267502666,-500.0,0.00015616,2]
[406895573,1772267502675,-530.37,0.00015616,2]
[406895574,1772267502684,-1765.65,0.00015616,2]
[406895575,1772267502694,-500.0,0.00015616,2]
[406895576,1772267502703,-500.0,0.00015616,2]
[406895577,1772267502713,-1444.95,0.00015616,2]
[406895578,1772267502723,-4088.91,0.00015616,2]
[406895579,1772267502732,-2445.15,0.00015616,2]
[406895580,1772267502742,-2774.65,0.00015616,2]
[406895581,1772267502751,-500.0,0.00015616,2]
[406895582,1772267502761,-3783.55,0.00015616,2]
[406895583,1772267502929,-500.0,0.00015616,2]
[406895584,1772267502948,-1333.68,0.00015616,2]
[406895585,1772267502959,-14153.91,0.00015616,2]
[406895586,1772267502970,-500.0,0.00015616,2]
[406895587,1772267502980,-500.0,0.00015616,2]
[406895588,1772267502991,-3218.57,0.00015616,2]
[406895589,1772267503002,-2092.55,0.00015616,2]
[406895590,1772267503012,-500.0,0.00015616,2]
[406895591,1772267503021,-2893.22,0.00015616,2]
[406895592,1772267503031,-2259.28,0.00015616,2]
[406895593,1772267503041,-500.0,0.00015616,2]
[406895594,1772267503051,-1798.11,0.00015616,2]
[406895595,1772267503061,-540.91,0.00015616,2]
[406895596,1772267503071,-500.0,0.00015616,2]
[406895597,1772267503081,-500.0,0.00015616,2]
[406895598,1772267503091,-500.0,0.00015616,2]
[406895599,1772267503101,-16752.77,0.00015616,2]
[406895600,1772267503111,-500.0,0.00015616,2]
[406895601,1772267503120,-1638.09,0.00015616,2]
[406895602,1772267503132,-500.97,0.00015616,2]
[406895603,1772267503143,-526.47,0.00015616,2]
[406895604,1772267503152,-500.0,0.00015616,2]
[406895605,1772267503162,-500.0,0.00015616,2]
[406895606,1772267503172,-4470.34,0.00015616,2]
[406895607,1772267503183,-500.0,0.00015616,2]
[406895608,1772267503193,-2160.15,0.00015616,2]
[406895609,1772267503203,-500.0,0.00015616,2]
[406895610,1772267503213,-587.54,0.00015616,2]
[406895611,1772267503224,-611.61,0.00015616,2]
[406895612,1772267503234,-679.97,0.00015616,2]
[406895613,1772267503243,-62454.68,0.00015616,2]
[406895614,1772267503253,-500.0,0.00015616,2]
[406895615,1772267503263,-4931.54,0.00015616,2]
[406895616,1772267503273,-691.25,0.00015616,2]
[406895617,1772267503283,-500.0,0.00015616,2]
[406895618,1772267503292,-2603.07,0.00015616,2]
[406895619,1772267503302,-7026.09,0.00015616,2]
[406895620,1772267503312,-500.0,0.00015616,2]
[406895621,1772267503323,-668.0,0.00015616,2]
[406895622,1772267503333,-1193.68,0.00015616,2]
[406895623,1772267503343,-635.83,0.00015616,2]
[406895624,1772267503353,-500.0,0.00015616,2]
[406895625,1772267503363,-500.0,0.00015616,2]
[406895626,1772267503373,-1018.54,0.00015616,2]
[406895627,1772267503383,-500.0,0.00015616,2]
[406895628,1772267503394,-8795.12,0.00015616,2]
[406895629,1772267503404,-500.0,0.00015616,2]
[406895630,1772267503414,-511.19,0.00015616,2]
[406895631,1772267503424,-2059.67,0.00015616,2]
[406895632,1772267503435,-500.0,0.00015616,2]
[406895633,1772267503445,-500.0,0.00015616,2]
[406895634,1772267503455,-2791.04,0.00015616,2]
[406895635,1772267503465,-500.0,0.00015616,2]
[406895636,1772267503474,-4120.89,0.00015616,2]
[406895637,1772267503485,-500.0,0.00015616,2]
[406895638,1772267503494,-738.7,0.00015616,2]
[406895639,1772267503504,-500.0,0.00015616,2]
[406895640,1772267503514,-858.19,0.00015616,2]
[406895641,1772267503523,-500.0,0.00015616,2]
[406895642,1772267503532,-1094.77,0.00015616,2]
[406895643,1772267503542,-1558.46,0.00015616,2]
[406895644,1772267503552,-500.0,0.00015616,2]
[406895645,1772267503562,-3104.3,0.00015616,2]
[406895646,1772267503572,-41294.65,0.00015616,2]
[406895647,1772267503582,-500.0,0.00015616,2]
[406895648,1772267503592,-500.0,0.00015616,2]
[406895649,1772267503606,-500.0,0.00015616,2]
[406895650,1772267503617,-500.0,0.00015616,2]
[406895651,1772267503627,-4305.9,0.00015616,2]
[406895652,1772267503637,-1079.08,0.00015616,2]
[406895653,1772267503647,-1590.25,0.00015616,2]
[406895654,1772267503656,-829.59,0.00015616,2]
[406895655,1772267503666,-17553.64,0.00015616,2]
[406895656,1772267503675,-836.94,0.00015616,2]
[406895657,1772267503686,-2501.06,0.00015616,2]
[406895658,1772267503696,-624.89,0.00015616,2]
[406895659,1772267503706,-544.68704259,0.00015616,2]
[406895660,1772267503716,-500.0,0.00015616,2]
[406895661,1772267503726,-500.0,0.00015616,2]
[406895662,1772267503736,-587.66,0.00015616,2]
[406895663,1772267503746,-612.52,0.00015616,2]
[406895664,1772267503759,-798.52,0.00015616,2]
[406895665,1772267503768,-920.96,0.00015616,2]
[406895666,1772267503777,-833.23,0.00015616,2]
[406895667,1772267503787,-502.1,0.00015616,2]
[406895668,1772267503796,-1661.19,0.00015616,2]
[406895669,1772267503806,-500.0,0.00015616,2]
[406895670,1772267503815,-884.15,0.00015616,2]
[406895671,1772267503826,-997.87,0.00015616,2]
[406895672,1772267503835,-714.12,0.00015616,2]
[406895673,1772267503844,-2806.98,0.00015616,2]
[406895674,1772267503854,-3389.85,0.00015616,2]
[406895675,1772267503864,-500.0,0.00015616,2]
[406895676,1772267503874,-500.0,0.00015616,2]
[406895677,1772267503884,-736.98,0.00015616,2]
[406895678,1772267503893,-360.71066183,0.00015616,2]
[406895679,1772267503904,-500.0,0.00015616,2]
[406895680,1772267503914,-3040.54,0.00015616,2]
[406895681,1772267503923,-500.0,0.00015616,2]
[406895682,1772267503933,-1624.77,0.00015616,2]
[406895683,1772267503943,-8862.41,0.00015616,2]
[406895684,1772267503952,-21682.96,0.00015616,2]
[406895685,1772267503962,-1097.26,0.00015616,2]
[406895686,1772267503972,-500.0,0.00015616,2]
[406895687,1772267503981,-7502.8,0.00015616,2]
[406895688,1772267503991,-347.24251205,0.00015616,2]
[406895689,1772267504001,-500.0,0.00015616,2]
[406895690,1772267504011,-565.02,0.00015616,2]
[406895691,1772267504021,-6625.37,0.00015616,2]
[406895692,1772267504030,-500.0,0.00015616,2]
[406895693,1772267504039,-2462.23,0.00015616,2]
[406895694,1772267504049,-1430.4,0.00015616,2]
[406895695,1772267504059,-1591.21,0.00015616,2]
[406895696,1772267504068,-408.31728061,0.00015616,2]
[406895697,1772267504078,-1097.85,0.00015616,2]
[406895698,1772267504087,-941.74,0.00015616,2]
[406895699,1772267504097,-2991.59,0.00015616,2]
[406895700,1772267504107,-1208.52,0.00015616,2]
[406895701,1772267504116,-1852.72,0.00015616,2]
[406895702,1772267504126,-500.0,0.00015616,2]
[406895703,1772267504136,-500.0,0.00015616,2]
[406895704,1772267504151,-500.0,0.00015616,2]
[406895705,1772267504160,-500.0,0.00015616,2]
[406895706,1772267504170,-2739.1,0.00015616,2]
[406895707,1772267504182,-500.0,0.00015616,2]
[406895708,1772267504192,-3806.49,0.00015616,2]
[406895709,1772267504202,-7703.07,0.00015616,2]
[406895710,1772267504212,-515.24,0.00015616,2]
[406895711,1772267504222,-500.0,0.00015616,2]
[406895712,1772267504232,-500.0,0.00015616,2]
[406895713,1772267504241,-1723.78,0.00015616,2]
[406895714,1772267504251,-1269.75,0.00015616,2]
[406895715,1772267504260,-500.0,0.00015616,2]
[406895716,1772267504270,-2065.59,0.00015616,2]
[406895717,1772267504279,-500.0,0.00015616,2]
[406895718,1772267504288,-500.0,0.00015616,2]
[406895719,1772267504298,-2115.78,0.00015616,2]
[406895720,1772267504307,-500.0,0.00015616,2]
[406895721,1772267504318,-1897.54,0.00015616,2]
[406895722,1772267504338,-267.61679215,0.00015616,2]
[406895723,1772267504360,-3092.48,0.00015616,2]
[406895724,1772267504372,-628.70986197,0.00015616,2]
[406895725,1772267504384,-500.0,0.00015616,2]
[406895726,1772267504396,-922.16,0.00015616,2]
[406895727,1772267504406,-1034.45,0.00015616,2]
[406895728,1772267504417,-4771.37,0.00015616,2]
[406895729,1772267504428,-500.0,0.00015616,2]
[406895730,1772267504440,-1231.85,0.00015616,2]
[406895731,1772267504454,-500.0,0.00015616,2]
[406895732,1772267504464,-703.38,0.00015616,2]
[406895733,1772267504474,-1278.09628873,0.000157,2]
[406895734,1772267504485,-2725.09,0.00015701,2]
[406895735,1772267504497,-2982.60894464,0.00015752,2]
[406895736,1772267504507,-160.0,0.000158,2]
[406895737,1772267504517,-160.0,0.000158,2]
[406895738,1772267504528,-12135.85014496,0.000158,10]
[406895739,1772267504541,-1701.974508,0.000158,2]
[406895740,1772267504551,-4268.35258123,0.000158,2]
[406895741,1772267504560,-334.04164818,0.000158,2]
[406895742,1772267504572,-218.99709188,0.000158,2]
[406895743,1772267504582,-217.59510941,0.000158,2]
[406895744,1772267504591,-2725.09,0.00015818,2]
[406895745,1772267504601,-500.0,0.0001589,2]
[406895746,1772267504611,-500.0,0.0001589,2]
[406895747,1772267504623,-607.58,0.0001589,2]
[406895748,1772267504634,-500.0,0.0001589,2]
[406895749,1772267504645,-980.59,0.0001589,2]
[406895750,1772267504655,-500.0,0.0001589,2]
[406895751,1772267504667,-500.0,0.0001589,2]
[406895752,1772267504678,-500.0,0.0001589,2]
[406895753,1772267504689,-500.0,0.0001589,2]
[406895754,1772267504699,-1353.85,0.0001589,2]
[406895755,1772267504710,-1322.07,0.0001589,2]
[406895756,1772267504719,-692.0,0.0001589,2]
[406895757,1772267504730,-500.0,0.0001589,2]
[406895758,1772267504739,-564.22,0.0001589,2]
[406895759,1772267504753,-520.93,0.0001589,2]
[406895760,1772267504776,-500.0,0.0001589,2]
[406895761,1772267504798,-500.0,0.0001589,2]
[406895762,1772267504809,-500.0,0.0001589,2]
[406895763,1772267504820,-1711.44,0.0001589,2]
[406895764,1772267504830,-2726.35,0.0001589,2]
[406895765,1772267504840,-500.0,0.0001589,2]
[406895766,1772267504850,-1744.45,0.0001589,2]
[406895767,1772267504859,-262.52075678,0.0001589,2]
[406895768,1772267504869,-500.0,0.0001589,2]
[406895769,1772267504878,-500.0,0.0001589,2]
[406895770,1772267504888,-1041.8,0.0001589,2]
[406895771,1772267504898,-737.4,0.0001589,2]
[406895772,1772267504908,-2718.46,0.0001589,2]
[406895773,1772267504918,-500.0,0.0001589,2]
[406895774,1772267504927,-500.0,0.0001589,2]
[406895775,1772267504937,-770.65,0.0001589,2]
[406895776,1772267504947,-902.4,0.0001589,2]
[406895777,1772267504957,-989.47,0.0001589,2]
[406895778,1772267504967,-558.27,0.0001589,2]
[406895779,1772267504976,-603.96,0.0001589,2]
[406895780,1772267504986,-500.0,0.0001589,2]
[406895781,1772267504995,-500.58,0.0001589,2]
[406895782,1772267505005,-345.82403932,0.0001589,2]
[406895783,1772267505014,-2062.12,0.0001589,2]
[406895784,1772267505024,-719.5,0.0001589,2]
[406895785,1772267505034,-525.56,0.0001589,2]
[406895786,1772267505043,-500.0,0.0001589,2]
[406895787,1772267505052,-500.0,0.0001589,2]
[406895788,1772267505063,-500.0,0.0001589,2]
[406895789,1772267505072,-500.0,0.0001589,2]
[406895790,1772267505081,-546.89,0.0001589,2]
[406895791,1772267505091,-1727.31,0.0001589,2]
[406895792,1772267505101,-500.0,0.0001589,2]
[406895793,1772267505110,-514.02,0.0001589,2]
[406895794,1772267505120,-500.0,0.0001589,2]
[406895795,1772267505131,-860.84,0.0001589,2]
[406895796,1772267505142,-955.26,0.0001589,2]
[406895797,1772267505152,-500.0,0.0001589,2]
[406895798,1772267505162,-725.73,0.0001589,2]
[406895799,1772267505171,-914.38,0.0001589,2]
[406895800,1772267505182,-1116.21,0.0001589,2]
[406895801,1772267505191,-500.0,0.0001589,2]
[406895802,1772267505200,-500.0,0.0001589,2]
[406895803,1772267505210,-579.95,0.0001589,2]
[406895804,1772267505220,-500.0,0.0001589,2]
[406895805,1772267505230,-1326.22,0.0001589,2]
[406895806,1772267505239,-1036.26,0.0001589,2]
[406895807,1772267505249,-500.0,0.0001589,2]
[406895808,1772267505259,-936.85,0.0001589,2]
[406895809,1772267505268,-500.0,0.0001589,2]
[406895810,1772267505278,-500.0,0.0001589,2]
[406895811,1772267505287,-500.0,0.0001589,2]
[406895812,1772267505297,-500.0,0.0001589,2]
[406895813,1772267505307,-547.18,0.0001589,2]
[406895814,1772267505317,-452.13101612,0.0001589,2]
[406895815,1772267505326,-1250.68,0.0001589,2]
[406895816,1772267505336,-500.0,0.0001589,2]
[406895817,1772267505345,-1196.3,0.0001589,2]
[406895818,1772267505355,-1024.08,0.0001589,2]
[406895819,1772267505364,-898.6,0.0001589,2]
[406895820,1772267505373,-500.0,0.0001589,2]
[406895821,1772267505383,-500.0,0.0001589,2]
[406895822,1772267505393,-609.4,0.0001589,2]
[406895823,1772267505402,-500.0,0.0001589,2]
[406895824,1772267505411,-151.0,0.0001589,2]
[406895825,1772267505420,-1312.05,0.0001589,2]
[406895826,1772267505430,-937.86,0.0001589,2]
[406895827,1772267505496,-651.8,0.0001589,2]
[406895828,1772267505507,-500.0,0.0001589,2]
[406895829,1772267505516,-500.0,0.0001589,2]
[406895830,1772267505526,-500.0,0.0001589,2]
[406895831,1772267505535,-500.0,0.0001589,2]
[406895832,1772267505544,-517.11,0.0001589,2]
[406895833,1772267505554,-500.0,0.0001589,2]
[406895834,1772267505564,-500.0,0.0001589,2]
[406895835,1772267505574,-500.0,0.0001589,2]
[406895836,1772267505583,-1446.65,0.0001589,2]
[406895837,1772267505593,-500.0,0.0001589,2]
[406895838,1772267505602,-1733.53,0.0001589,2]
[406895839,1772267505611,-500.0,0.0001589,2]
[406895840,1772267505621,-1436.12,0.0001589,2]
[406895841,1772267505630,-500.0,0.0001589,2]
[406895842,1772267505640,-685.31,0.0001589,2]
[406895843,1772267505650,-580.66,0.0001589,2]
[406895844,1772267505659,-571.4,0.0001589,2]
[406895845,1772267505669,-864.92,0.0001589,2]
[406895846,1772267505678,-846.6,0.0001589,2]
[406895847,1772267505687,-1593.78,0.0001589,2]
[406895848,1772267505697,-750.44,0.0001589,2]
[406895849,1772267505707,-500.0,0.0001589,2]
[406895850,1772267505716,-500.0,0.0001589,2]
[406895851,1772267505726,-1521.42,0.0001589,2]
[406895852,1772267505735,-1247.19,0.0001589,2]
[406895853,1772267505746,-705.82,0.0001589,2]
[406895854,1772267505756,-500.0,0.0001589,2]
[406895855,1772267505765,-529.62,0.0001589,2]
[406895856,1772267505775,-422.72409277,0.0001589,2]
[406895857,1772267505784,-500.0,0.0001589,2]
[406895858,1772267505794,-745.32,0.0001589,2]
[406895859,1772267505803,-1605.01,0.0001589,2]
[406895860,1772267505812,-500.0,0.0001589,2]
[406895861,1772267505822,-1610.8,0.0001589,2]
[406895862,1772267505831,-500.0,0.0001589,2]
[406895863,1772267505841,-556.41243377,0.0001589,2]
[406895864,1772267505851,-1001.72,0.0001589,2]
[406895865,1772267505860,-1059.56,0.0001589,2]
[406895866,1772267505870,-627.88,0.0001589,2]
[406895867,1772267505879,-500.0,0.0001589,2]
[406895868,1772267505889,-917.08,0.0001589,2]
[406895869,1772267505898,-500.0,0.0001589,2]
[406895870,1772267505908,-500.0,0.0001589,2]
[406895871,1772267505917,-529.27,0.0001589,2]
[406895872,1772267505927,-927.57,0.0001589,2]
[406895873,1772267505938,-650.87,0.0001589,2]
[406895874,1772267505947,-661.99,0.0001589,2]
[406895875,1772267505956,-500.0,0.0001589,2]
[406895876,1772267505966,-500.0,0.0001589,2]
[406895877,1772267505975,-818.16,0.0001589,2]
[406895878,1772267505985,-500.0,0.0001589,2]
[406895879,1772267505997,-1219.63,0.0001589,2]
[406895880,1772267506006,-500.0,0.0001589,2]
[406895881,1772267506015,-564.11,0.0001589,2]
[406895882,1772267506024,-500.0,0.0001589,2]
[406895883,1772267506034,-500.0,0.0001589,2]
[406895884,1772267506044,-500.0,0.0001589,2]
[406895885,1772267506054,-500.0,0.0001589,2]
[406895886,1772267506064,-500.0,0.0001589,2]
[406895887,1772267506073,-773.68,0.0001589,2]
[406895888,1772267506082,-500.0,0.0001589,2]
[406895889,1772267506091,-1058.67,0.0001589,2]
[406895890,1772267506101,-544.13,0.0001589,2]
[406895891,1772267506110,-500.0,0.0001589,2]
[406895892,1772267506119,-1354.43,0.0001589,2]
[406895893,1772267506129,-500.0,0.0001589,2]
[406895894,1772267506143,-500.0,0.0001589,2]
[406895895,1772267506152,-947.35,0.0001589,2]
[406895896,1772267506161,-500.0,0.0001589,2]
[406895897,1772267506171,-500.0,0.0001589,2]
[406895898,1772267506182,-577.2,0.0001589,2]
[406895899,1772267506191,-617.88,0.0001589,2]
[406895900,1772267506201,-1264.55,0.0001589,2]
[406895901,1772267506210,-609.45,0.0001589,2]
[406895902,1772267506221,-500.0,0.0001589,2]
[406895903,1772267506230,-787.95,0.0001589,2]
[406895904,1772267506240,-1665.88,0.0001589,2]
[406895905,1772267506251,-571.43,0.0001589,2]
[406895906,1772267506260,-500.0,0.0001589,2]
[406895907,1772267506269,-7573.22,0.0001589,2]
[406895908,1772267506279,-554.61,0.0001589,2]
[406895909,1772267506288,-500.0,0.0001589,2]
[406895910,1772267506297,-500.0,0.0001589,2]
[406895911,1772267506306,-500.0,0.0001589,2]
[406895912,1772267506316,-500.0,0.0001589,2]
[406895913,1772267506326,-1743.64,0.0001589,2]
[406895914,1772267506335,-2006.98,0.0001589,2]
[406895915,1772267506346,-2108.79,0.0001589,2]
[406895916,1772267506355,-647.16,0.0001589,2]
[406895917,1772267506366,-500.0,0.0001589,2]
[406895918,1772267506376,-839.36,0.0001589,2]
[406895919,1772267506385,-878.12,0.0001589,2]
[406895920,1772267506405,-7180.71,0.0001589,2]
[406895921,1772267506416,-784.54,0.0001589,2]
[406895922,1772267506427,-696.62,0.0001589,2]
[406895923,1772267506436,-854.66,0.0001589,2]
[406895924,1772267506446,-1726.59,0.0001589,2]
[406895925,1772267506457,-500.0,0.0001589,2]
[406895926,1772267506468,-269.56918977,0.0001589,2]
[406895927,1772267506479,-1075.35,0.0001589,2]
[406895928,1772267506490,-5780.22,0.0001589,2]
[406895929,1772267506500,-1052.35,0.0001589,2]
[406895930,1772267506510,-1604.1,0.0001589,2]
[406895931,1772267506520,-617.93,0.0001589,2]
[406895932,1772267506530,-1438.35,0.0001589,2]
[406895933,1772267506540,-500.0,0.0001589,2]
[406895934,1772267506550,-500.0,0.0001589,2]
[406895935,1772267506560,-1671.97,0.0001589,2]
[406895936,1772267506571,-500.0,0.0001589,2]
[406895937,1772267506582,-500.0,0.0001589,2]
[406895938,1772267506592,-566.35,0.0001589,2]
[406895939,1772267506602,-695.06,0.0001589,2]
[406895940,1772267506612,-500.0,0.0001589,2]
[406895941,1772267506623,-692.56,0.0001589,2]
[406895942,1772267506632,-1703.31,0.0001589,2]
[406895943,1772267506643,-1091.8,0.0001589,2]
[406895944,1772267506653,-526.21,0.0001589,2]
[406895945,1772267506664,-1946.78,0.0001589,2]
[406895946,1772267506675,-1093.05,0.0001589,2]
[406895947,1772267506685,-522.9,0.0001589,2]
[406895948,1772267506695,-1010.99,0.0001589,2]
[406895949,1772267506706,-597.64,0.0001589,2]
[406895950,1772267506716,-632.06,0.0001589,2]
[406895951,1772267506727,-1404.24,0.0001589,2]
[406895952,1772267506737,-500.0,0.0001589,2]
[406895953,1772267506748,-3447.77,0.0001589,2]
[406895954,1772267506758,-592.02,0.0001589,2]
[406895955,1772267506768,-500.0,0.0001589,2]
[406895956,1772267506778,-500.0,0.0001589,2]
[406895957,1772267506788,-1639.95,0.0001589,2]
[406895958,1772267506799,-500.0,0.0001589,2]
[406895959,1772267506809,-500.0,0.0001589,2]
[406895960,1772267506820,-766.57,0.0001589,2]
[406895961,1772267506832,-2199.16,0.0001589,2]
[406895962,1772267506842,-500.0,0.0001589,2]
[406895963,1772267506852,-515.11,0.0001589,2]
[406895964,1772267506862,-1033.14,0.0001589,2]
[406895965,1772267506872,-1309.19,0.0001589,2]
[406895966,1772267506883,-1688.18,0.0001589,2]
[406895967,1772267506893,-3009.71,0.0001589,2]
[406895968,1772267506903,-1567.57,0.0001589,2]